fUST/lending_fUST_20260609
["ID","MTS","AMOUNT","RATE_DAILY","PERIOD"]
[424570414,1780999849000,-14407.5,0.00018082,2]
[424570423,1780999849000,-1730.92,0.00018082,2]
[424570406,1780999849000,-500.0,0.00018082,2]
[424570416,1780999849000,-500.0,0.00018082,2]
[424570425,1780999849000,-576.05,0.00018082,2]
[424570417,1780999849000,-500.0,0.00018082,2]
[424570421,1780999849000,-1264.86,0.00018082,2]
[424570429,1780999849000,-500.0,0.00018082,2]
[424570427,1780999849000,-2284.9,0.00018082,2]
[424570419,1780999849000,-1601.66,0.00018082,2]
[424570431,1780999849000,-501.45,0.00018082,2]
[424570443,1780999849000,-644.88,0.00018082,2]
[424570434,1780999849000,-779.11,0.00018082,2]
[424570446,1780999849000,-937.31,0.00018082,2]
[424570436,1780999849000,-500.0,0.00018082,2]
[424570447,1780999849000,-732.55,0.00018082,2]
[424570450,1780999849000,-1576.75,0.00018082,2]
[424570451,1780999849000,-524.26,0.00018082,2]
[424570432,1780999849000,-500.0,0.00018082,2]
[424570441,1780999849000,-548.46,0.00018082,2]
[424570314,1780999849000,-487.0,0.00017808,2]
[424570438,1780999849000,-500.0,0.00018082,2]
[424570404,1780999849000,-500.0,0.00018082,2]
[424570392,1780999849000,-500.0,0.00018082,2]
[424570440,1780999849000,-1803.9,0.00018082,2]
[424570400,1780999849000,-500.0,0.00018082,2]
[424570390,1780999849000,-500.0,0.00018082,2]
[424570328,1780999849000,-218.952896,0.00018,2]
[424570332,1780999849000,-8259.58593257,0.00018,2]
[424570334,1780999849000,-2773.85058938,0.00018,2]
[424570339,1780999849000,-198.7921815,0.00018,2]
[424570336,1780999849000,-3952.75973105,0.00018,2]
[424570338,1780999849000,-151.0,0.00018,2]
[424570341,1780999849000,-156.0,0.00018029,2]
[424570353,1780999849000,-500.0,0.00018082,2]
[424570345,1780999849000,-631.5,0.00018082,2]
[424570355,1780999849000,-500.0,0.00018082,2]
[424570343,1780999849000,-266.0,0.0001805,2]
[424570357,1780999849000,-1017.9,0.00018082,2]
[424570349,1780999849000,-526.07,0.00018082,2]
[424570330,1780999849000,-200.97753437,0.00018,2]
[424570388,1780999849000,-500.0,0.00018082,2]
[424570386,1780999849000,-500.0,0.00018082,2]
[424570382,1780999849000,-1337.24,0.00018082,2]
[424570379,1780999849000,-500.0,0.00018082,2]
[424570384,1780999849000,-500.0,0.00018082,2]
[424570351,1780999849000,-543.66,0.00018082,2]
[424570375,1780999849000,-500.0,0.00018082,2]
[424570373,1780999849000,-823.65,0.00018082,2]
[424570371,1780999849000,-500.0,0.00018082,2]
[424570367,1780999849000,-500.0,0.00018082,2]
[424570369,1780999849000,-500.0,0.00018082,2]
[424570359,1780999849000,-500.0,0.00018082,2]
[424570361,1780999849000,-500.0,0.00018082,2]
[424570347,1780999849000,-500.0,0.00018082,2]
[424570377,1780999849000,-500.0,0.00018082,2]
[424570545,1780999850000,-500.0,0.00018356,2]
[424570544,1780999850000,-500.0,0.00018356,2]
[424570539,1780999850000,-500.0,0.00018356,2]
[424570528,1780999850000,-823.65,0.00018356,2]
[424570529,1780999850000,-500.0,0.00018356,2]
[424570568,1780999850000,-1601.66,0.00018356,2]
[424570534,1780999850000,-500.0,0.00018356,2]
[424570523,1780999850000,-500.0,0.00018356,2]
[424570526,1780999850000,-500.0,0.00018356,2]
[424570521,1780999850000,-500.0,0.00018356,2]
[424570536,1780999850000,-1337.24,0.00018356,2]
[424570532,1780999850000,-500.0,0.00018356,2]
[424570517,1780999850000,-500.0,0.00018356,2]
[424570548,1780999850000,-906.22,0.00018356,2]
[424570538,1780999850000,-248.76,0.00018356,2]
[424570557,1780999850000,-500.0,0.00018356,2]
[424570559,1780999850000,-859.31,0.00018356,2]
[424570555,1780999850000,-500.0,0.00018356,2]
[424570549,1780999850000,-562.87,0.00018356,2]
[424570552,1780999850000,-500.0,0.00018356,2]
[424570553,1780999850000,-500.0,0.00018356,2]
[424570564,1780999850000,-500.0,0.00018356,2]
[424570570,1780999850000,-1264.86,0.00018356,2]
[424570566,1780999850000,-500.0,0.00018356,2]
[424570572,1780999850000,-1730.92,0.00018356,2]
[424570562,1780999850000,-14407.5,0.00018356,2]
[424570519,1780999850000,-500.0,0.00018356,2]
[424570541,1780999850000,-333.48,0.00018356,2]
[424570515,1780999850000,-1017.9,0.00018356,2]
[424570486,1780999850000,-319.82449824,0.00018125,2]
[424570512,1780999850000,-500.0,0.00018356,2]
[424570575,1780999850000,-576.05,0.00018356,2]
[424570453,1780999850000,-1492.9,0.00018082,2]
[424570456,1780999850000,-1470.94,0.00018082,2]
[424570458,1780999850000,-500.0,0.00018082,2]
[424570464,1780999850000,-500.0,0.00018082,2]
[424570462,1780999850000,-1024.86,0.00018082,2]
[424570466,1780999850000,-1379.7,0.00018082,2]
[424570472,1780999850000,-500.0,0.00018082,2]
[424570478,1780999850000,-500.0,0.00018082,2]
[424570476,1780999850000,-500.0,0.00018082,2]
[424570468,1780999850000,-500.0,0.00018082,2]
[424570470,1780999850000,-572.64,0.00018082,2]
[424570474,1780999850000,-500.0,0.00018082,2]
[424570513,1780999850000,-500.0,0.00018356,2]
[424570480,1780999850000,-500.0,0.00018082,2]
[424570490,1780999850000,-239.00083286,0.00018131,2]
[424570488,1780999850000,-307.23056185,0.00018131,2]
[424570484,1780999850000,-152.82025481,0.00018101,2]
[424570492,1780999850000,-354.86494645,0.00018131,2]
[424570494,1780999850000,-161.27686667,0.00018149,2]
[424570496,1780999850000,-151.0,0.000182,2]
[424570502,1780999850000,-152.0,0.0001829,2]
[424570498,1780999850000,-198.7921815,0.000182,2]
[424570504,1780999850000,-631.5,0.00018356,2]
[424570500,1780999850000,-675.28567032,0.00018218,2]
[424570506,1780999850000,-500.0,0.00018356,2]
[424570508,1780999850000,-526.07,0.00018356,2]
[424570510,1780999850000,-543.66,0.00018356,2]
[424570482,1780999850000,-1710.4,0.00018082,2]
[424570577,1780999850000,-2284.9,0.00018356,2]
[424570460,1780999850000,-792.6,0.00018082,2]
[424570583,1780999850000,-779.11,0.00018356,2]
[424570648,1780999850000,-500.0,0.0001863,2]
[424570646,1780999850000,-500.0,0.0001863,2]
[424570660,1780999850000,-500.0,0.0001863,2]
[424570650,1780999850000,-1017.9,0.0001863,2]
[424570654,1780999850000,-500.0,0.0001863,2]
[424570652,1780999850000,-500.0,0.0001863,2]
[424570656,1780999850000,-500.0,0.0001863,2]
[424570662,1780999850000,-823.65,0.0001863,2]
[424570664,1780999850000,-500.0,0.0001863,2]
[424570666,1780999850000,-500.0,0.0001863,2]
[424570658,1780999850000,-500.0,0.0001863,2]
[424570675,1780999850000,-500.0,0.0001863,2]
[424570674,1780999850000,-1337.24,0.0001863,2]
[424570644,1780999850000,-543.66,0.0001863,2]
[424570668,1780999850000,-500.0,0.0001863,2]
[424570679,1780999850000,-500.0,0.0001863,2]
[424570681,1780999850000,-906.22,0.0001863,2]
[424570683,1780999850000,-562.87,0.0001863,2]
[424570685,1780999850000,-500.0,0.0001863,2]
[424570687,1780999850000,-500.0,0.0001863,2]
[424570691,1780999850000,-500.0,0.0001863,2]
[424570689,1780999850000,-500.0,0.0001863,2]
[424570693,1780999850000,-859.31,0.0001863,2]
[424570697,1780999850000,-500.0,0.0001863,2]
[424570695,1780999850000,-14407.5,0.0001863,2]
[424570701,1780999850000,-1601.66,0.0001863,2]
[424570699,1780999850000,-500.0,0.0001863,2]
[424570581,1780999850000,-366.5,0.00018356,2]
[424570677,1780999850000,-500.0,0.0001863,2]
[424570642,1780999850000,-526.07,0.0001863,2]
[424570703,1780999850000,-1264.86,0.0001863,2]
[424570636,1780999850000,-160.0,0.00018609,3]
[424570579,1780999850000,-500.0,0.00018356,2]
[424570585,1780999850000,-551.94,0.00018356,2]
[424570590,1780999850000,-548.46,0.00018356,2]
[424570589,1780999850000,-1803.9,0.00018356,2]
[424570587,1780999850000,-500.0,0.00018356,2]
[424570596,1780999850000,-732.55,0.00018356,2]
[424570592,1780999850000,-644.88,0.00018356,2]
[424570598,1780999850000,-1576.75,0.00018356,2]
[424570640,1780999850000,-500.0,0.0001863,2]
[424570604,1780999850000,-1470.94,0.00018356,2]
[424570602,1780999850000,-1492.9,0.00018356,2]
[424570600,1780999850000,-524.26,0.00018356,2]
[424570610,1780999850000,-1024.86,0.00018356,2]
[424570606,1780999850000,-500.0,0.00018356,2]
[424570594,1780999850000,-937.31,0.00018356,2]
[424570612,1780999850000,-500.0,0.00018356,2]
[424570634,1780999850000,-720.0,0.00018442,2]
[424570608,1780999850000,-792.6,0.00018356,2]
[424570638,1780999850000,-631.5,0.0001863,2]
[424570625,1780999850000,-500.0,0.00018356,2]
[424570623,1780999850000,-500.0,0.00018356,2]
[424570626,1780999850000,-500.0,0.00018356,2]
[424570633,1780999850000,-410.17003659,0.000184,2]
[424570629,1780999850000,-1710.4,0.00018356,2]
[424570621,1780999850000,-500.0,0.00018356,2]
[424570619,1780999850000,-403.34,0.00018356,2]
[424570617,1780999850000,-572.64,0.00018356,2]
[424570615,1780999850000,-500.0,0.00018356,2]
[424570614,1780999850000,-1379.7,0.00018356,2]
[424570631,1780999850000,-410.17003661,0.000184,2]
[424570784,1780999851000,-1017.9,0.00018904,2]
[424570786,1780999851000,-500.0,0.00018904,2]
[424570778,1780999851000,-543.66,0.00018904,2]
[424570776,1780999851000,-526.07,0.00018904,2]
[424570767,1780999851000,-532.29741968,0.00018663,2]
[424570782,1780999851000,-500.0,0.00018904,2]
[424570775,1780999851000,-500.0,0.00018904,2]
[424570769,1780999851000,-322.55373333,0.00018682,2]
[424570773,1780999851000,-631.5,0.00018904,2]
[424570771,1780999851000,-825.0,0.0001872,2]
[424570780,1780999851000,-500.0,0.00018904,2]
[424570790,1780999851000,-500.0,0.00018904,2]
[424570818,1780999851000,-500.0,0.00018904,2]
[424570791,1780999851000,-176.7,0.00018904,2]
[424570795,1780999851000,-823.65,0.00018904,2]
[424570797,1780999851000,-500.0,0.00018904,2]
[424570793,1780999851000,-500.0,0.00018904,2]
[424570806,1780999851000,-500.0,0.00018904,2]
[424570810,1780999851000,-906.22,0.00018904,2]
[424570799,1780999851000,-500.0,0.00018904,2]
[424570805,1780999851000,-500.0,0.00018904,2]
[424570801,1780999851000,-500.0,0.00018904,2]
[424570803,1780999851000,-1337.24,0.00018904,2]
[424570808,1780999851000,-500.0,0.00018904,2]
[424570814,1780999851000,-500.0,0.00018904,2]
[424570816,1780999851000,-500.0,0.00018904,2]
[424570765,1780999851000,-478.00166572,0.00018663,2]
[424570788,1780999851000,-500.0,0.00018904,2]
[424570763,1780999851000,-460.84584278,0.00018663,2]
[424570735,1780999851000,-792.6,0.0001863,2]
[424570759,1780999851000,-281.68042331,0.00018635,2]
[424570820,1780999851000,-500.0,0.00018904,2]
[424570707,1780999851000,-576.05,0.0001863,2]
[424570709,1780999851000,-2284.9,0.0001863,2]
[424570705,1780999851000,-1730.92,0.0001863,2]
[424570710,1780999851000,-500.0,0.0001863,2]
[424570714,1780999851000,-500.0,0.0001863,2]
[424570722,1780999851000,-937.31,0.0001863,2]
[424570716,1780999851000,-1803.9,0.0001863,2]
[424570720,1780999851000,-644.88,0.0001863,2]
[424570718,1780999851000,-548.46,0.0001863,2]
[424570713,1780999851000,-779.11,0.0001863,2]
[424570724,1780999851000,-732.55,0.0001863,2]
[424570733,1780999851000,-500.0,0.0001863,2]
[424570761,1780999851000,-479.73674736,0.00018658,2]
[424570726,1780999851000,-1576.75,0.0001863,2]
[424570729,1780999851000,-1492.9,0.0001863,2]
[424570731,1780999851000,-1470.94,0.0001863,2]
[424570740,1780999851000,-1379.7,0.0001863,2]
[424570743,1780999851000,-500.0,0.0001863,2]
[424570744,1780999851000,-572.64,0.0001863,2]
[424570748,1780999851000,-500.0,0.0001863,2]
[424570737,1780999851000,-1024.86,0.0001863,2]
[424570750,1780999851000,-500.0,0.0001863,2]
[424570754,1780999851000,-1710.4,0.0001863,2]
[424570752,1780999851000,-244.17,0.0001863,2]
[424570755,1780999851000,-1470.44,0.0001863,2]
[424570746,1780999851000,-500.0,0.0001863,2]
[424570757,1780999851000,-305.64050962,0.00018633,2]
[424570727,1780999851000,-524.26,0.0001863,2]
[424570831,1780999851000,-1264.86,0.00018904,2]
[424570739,1780999851000,-500.0,0.0001863,2]
[424570812,1780999851000,-562.87,0.00018904,2]
[424570899,1780999851000,-333.1348242,0.0001899,2]
[424570901,1780999851000,-190.77493955,0.0001899,2]
[424570895,1780999851000,-289.79556559,0.00018988,2]
[424570891,1780999851000,-433.03395342,0.00018959,2]
[424570887,1780999851000,-778.40419383,0.00018959,2]
[424570885,1780999851000,-263.86164967,0.00018959,2]
[424570889,1780999851000,-191.88241092,0.00018959,2]
[424570902,1780999851000,-563.36084663,0.0001899,2]
[424570904,1780999851000,-2024.0,0.00019,2]
[424570906,1780999851000,-151.0,0.00019,2]
[424570919,1780999851000,-166.5674121,0.00019019,2]
[424570921,1780999851000,-186.07727182,0.00019019,2]
[424570908,1780999851000,-182.76881022,0.00019006,2]
[424570893,1780999851000,-160.87199856,0.00018959,2]
[424570927,1780999851000,-173.98927258,0.00019019,2]
[424570925,1780999851000,-184.41039856,0.00019019,2]
[424570910,1780999851000,-231.05033291,0.00019006,2]
[424570915,1780999851000,-217.84063336,0.00019013,2]
[424570930,1780999851000,-614.4611237,0.00019019,2]
[424570928,1780999851000,-204.47983466,0.00019019,2]
[424570917,1780999851000,-639.64899648,0.00019013,2]
[424570913,1780999851000,-216.51697671,0.00019013,2]
[424570912,1780999851000,-198.19597571,0.00019013,2]
[424570944,1780999851000,-252.62741518,0.00019019,2]
[424570942,1780999851000,-396.39195142,0.00019019,2]
[424570940,1780999851000,-295.43661012,0.00019019,2]
[424570938,1780999851000,-717.00249858,0.00019019,2]
[424570823,1780999851000,-14407.5,0.00018904,2]
[424570923,1780999851000,-274.76029686,0.00019019,2]
[424570897,1780999851000,-372.15454364,0.00018988,2]
[424570932,1780999851000,-198.96629136,0.00019019,2]
[424570867,1780999851000,-500.0,0.00018904,2]
[424570883,1780999851000,-1470.44,0.00018904,2]
[424570827,1780999851000,-500.0,0.00018904,2]
[424570821,1780999851000,-859.31,0.00018904,2]
[424570825,1780999851000,-500.0,0.00018904,2]
[424570834,1780999851000,-576.05,0.00018904,2]
[424570833,1780999851000,-1730.92,0.00018904,2]
[424570836,1780999851000,-2284.9,0.00018904,2]
[424570839,1780999851000,-500.0,0.00018904,2]
[424570841,1780999851000,-779.11,0.00018904,2]
[424570843,1780999851000,-500.0,0.00018904,2]
[424570847,1780999851000,-548.46,0.00018904,2]
[424570845,1780999851000,-1803.9,0.00018904,2]
[424570849,1780999851000,-644.88,0.00018904,2]
[424570852,1780999851000,-732.55,0.00018904,2]
[424570829,1780999851000,-1601.66,0.00018904,2]
[424570854,1780999851000,-1576.75,0.00018904,2]
[424570881,1780999851000,-1710.4,0.00018904,2]
[424570851,1780999851000,-937.31,0.00018904,2]
[424570866,1780999851000,-1024.86,0.00018904,2]
[424570864,1780999851000,-792.6,0.00018904,2]
[424570862,1780999851000,-500.0,0.00018904,2]
[424570873,1780999851000,-572.64,0.00018904,2]
[424570879,1780999851000,-500.0,0.00018904,2]
[424570859,1780999851000,-1470.94,0.00018904,2]
[424570875,1780999851000,-500.0,0.00018904,2]
[424570856,1780999851000,-524.26,0.00018904,2]
[424570869,1780999851000,-1379.7,0.00018904,2]
[424570857,1780999851000,-1492.9,0.00018904,2]
[424570877,1780999851000,-500.0,0.00018904,2]
[424570871,1780999851000,-500.0,0.00018904,2]
[424571005,1780999852000,-500.0,0.00019178,2]
[424571014,1780999852000,-300.0,0.00019178,2]
[424571007,1780999852000,-300.0,0.00019178,2]
[424571020,1780999852000,-500.0,0.00019178,2]
[424571018,1780999852000,-14407.5,0.00019178,2]
[424571016,1780999852000,-859.31,0.00019178,2]
[424571010,1780999852000,-500.0,0.00019178,2]
[424571012,1780999852000,-600.0,0.00019178,2]
[424571021,1780999852000,-500.0,0.00019178,2]
[424570999,1780999852000,-906.22,0.00019178,2]
[424571008,1780999852000,-500.0,0.00019178,2]
[424571022,1780999852000,-1601.66,0.00019178,2]
[424571024,1780999852000,-1264.86,0.00019178,2]
[424571028,1780999852000,-576.05,0.00019178,2]
[424571029,1780999852000,-2284.9,0.00019178,2]
[424571042,1780999852000,-937.31,0.00019178,2]
[424571044,1780999852000,-732.55,0.00019178,2]
[424571046,1780999852000,-1576.75,0.00019178,2]
[424571033,1780999852000,-779.11,0.00019178,2]
[424571047,1780999852000,-524.26,0.00019178,2]
[424571003,1780999852000,-500.0,0.00019178,2]
[424571037,1780999852000,-1803.9,0.00019178,2]
[424571026,1780999852000,-1730.92,0.00019178,2]
[424570997,1780999852000,-500.0,0.00019178,2]
[424570969,1780999852000,-500.0,0.00019178,2]
[424570993,1780999852000,-500.0,0.00019178,2]
[424571049,1780999852000,-1492.9,0.00019178,2]
[424570946,1780999852000,-210.09964656,0.00019019,2]
[424570948,1780999852000,-192.53319003,0.0001902,2]
[424570951,1780999852000,-150.96813879,0.0001902,2]
[424570953,1780999852000,-483.8306,0.00019037,2]
[424570955,1780999852000,-266.0,0.0001905,2]
[424570959,1780999852000,-184.44,0.00019156,2]
[424570961,1780999852000,-631.5,0.00019178,2]
[424570957,1780999852000,-275.58,0.000191,2]
[424570965,1780999852000,-526.07,0.00019178,2]
[424570977,1780999852000,-500.0,0.00019178,2]
[424571001,1780999852000,-562.87,0.00019178,2]
[424570973,1780999852000,-1017.9,0.00019178,2]
[424570975,1780999852000,-500.0,0.00019178,2]
[424570971,1780999852000,-500.0,0.00019178,2]
[424570967,1780999852000,-543.66,0.00019178,2]
[424570979,1780999852000,-213.94,0.00019178,2]
[424570983,1780999852000,-823.65,0.00019178,2]
[424570981,1780999852000,-500.0,0.00019178,2]
[424570995,1780999852000,-500.0,0.00019178,2]
[424570987,1780999852000,-257.69622567,0.00019178,2]
[424570989,1780999852000,-441.06365892,0.00019178,2]
[424570985,1780999852000,-236.2,0.00019178,2]
[424570991,1780999852000,-1337.24,0.00019178,2]
[424570963,1780999852000,-500.0,0.00019178,2]
[424571053,1780999852000,-500.0,0.00019178,2]
[424571063,1780999852000,-500.0,0.00019178,2]
[424571040,1780999852000,-644.88,0.00019178,2]
[424571116,1780999852000,-151.92,0.00019452,2]
[424571111,1780999852000,-543.66,0.00019452,2]
[424571119,1780999852000,-1017.9,0.00019452,2]
[424571122,1780999852000,-500.0,0.00019452,2]
[424571130,1780999852000,-823.65,0.00019452,2]
[424571128,1780999852000,-500.0,0.00019452,2]
[424571124,1780999852000,-500.0,0.00019452,2]
[424571132,1780999852000,-1337.24,0.00019452,2]
[424571137,1780999852000,-500.0,0.00019452,2]
[424571135,1780999852000,-500.0,0.00019452,2]
[424571140,1780999852000,-500.0,0.00019452,2]
[424571145,1780999852000,-562.87,0.00019452,2]
[424571148,1780999852000,-500.0,0.00019452,2]
[424571143,1780999852000,-906.22,0.00019452,2]
[424571151,1780999852000,-500.0,0.00019452,2]
[424571156,1780999852000,-859.31,0.00019452,2]
[424571158,1780999852000,-14407.5,0.00019452,2]
[424571155,1780999852000,-500.0,0.00019452,2]
[424571153,1780999852000,-500.0,0.00019452,2]
[424571051,1780999852000,-1470.94,0.00019178,2]
[424571161,1780999852000,-472.9,0.00019452,2]
[424571166,1780999852000,-1601.66,0.00019452,2]
[424571169,1780999852000,-1264.86,0.00019452,2]
[424571113,1780999852000,-500.0,0.00019452,2]
[424571108,1780999852000,-526.07,0.00019452,2]
[424571164,1780999852000,-493.2,0.00019452,2]
[424571097,1780999852000,-796.0,0.000194,2]
[424571105,1780999852000,-500.0,0.00019452,2]
[424571031,1780999852000,-500.0,0.00019178,2]
[424571035,1780999852000,-283.88,0.00019178,2]
[424571055,1780999852000,-792.6,0.00019178,2]
[424571057,1780999852000,-1024.86,0.00019178,2]
[424571065,1780999852000,-572.64,0.00019178,2]
[424571061,1780999852000,-1379.7,0.00019178,2]
[424571059,1780999852000,-500.0,0.00019178,2]
[424571076,1780999852000,-1470.44,0.00019178,2]
[424571080,1780999852000,-233.472561,0.00019331,2]
[424571078,1780999852000,-152.0,0.0001929,2]
[424571069,1780999852000,-500.0,0.00019178,2]
[424571039,1780999852000,-548.46,0.00019178,2]
[424571073,1780999852000,-1710.4,0.00019178,2]
[424571071,1780999852000,-500.0,0.00019178,2]
[424571091,1780999852000,-799.5612456,0.00019368,2]
[424571082,1780999852000,-160.0,0.00019336,4]
[424571102,1780999852000,-631.5,0.00019452,2]
[424571094,1780999852000,-768.07640463,0.00019374,2]
[424571086,1780999852000,-825.0,0.0001936,2]
[424571084,1780999852000,-825.0,0.0001936,2]
[424571074,1780999852000,-181.7,0.00019178,8]
[424571067,1780999852000,-500.0,0.00019178,2]
[424571088,1780999852000,-825.0,0.0001936,2]
[424571099,1780999852000,-250.0,0.00019448,2]
[424571241,1780999853000,-161.015558,0.000196,2]
[424571249,1780999853000,-543.66,0.00019726,2]
[424571232,1780999853000,-1470.44,0.00019452,2]
[424571228,1780999853000,-500.0,0.00019452,2]
[424571239,1780999853000,-191.491864,0.000196,2]
[424571237,1780999853000,-300.0,0.00019589,3]
[424571243,1780999853000,-631.5,0.00019726,2]
[424571245,1780999853000,-500.0,0.00019726,2]
[424571247,1780999853000,-526.07,0.00019726,2]
[424571265,1780999853000,-500.0,0.00019726,2]
[424571261,1780999853000,-823.65,0.00019726,2]
[424571257,1780999853000,-500.0,0.00019726,2]
[424571255,1780999853000,-500.0,0.00019726,2]
[424571251,1780999853000,-500.0,0.00019726,2]
[424571253,1780999853000,-1017.9,0.00019726,2]
[424571263,1780999853000,-1337.24,0.00019726,2]
[424571267,1780999853000,-500.0,0.00019726,2]
[424571269,1780999853000,-500.0,0.00019726,2]
[424571230,1780999853000,-1710.4,0.00019452,2]
[424571259,1780999853000,-500.0,0.00019726,2]
[424571236,1780999853000,-1273.71046574,0.00019542,2]
[424571199,1780999853000,-1576.75,0.00019452,2]
[424571224,1780999853000,-500.0,0.00019452,2]
[424571174,1780999853000,-576.05,0.00019452,2]
[424571171,1780999853000,-1730.92,0.00019452,2]
[424571176,1780999853000,-2284.9,0.00019452,2]
[424571178,1780999853000,-500.0,0.00019452,2]
[424571181,1780999853000,-779.11,0.00019452,2]
[424571186,1780999853000,-548.46,0.00019452,2]
[424571183,1780999853000,-1803.9,0.00019452,2]
[424571195,1780999853000,-732.55,0.00019452,2]
[424571192,1780999853000,-937.31,0.00019452,2]
[424571226,1780999853000,-500.0,0.00019452,2]
[424571189,1780999853000,-644.88,0.00019452,2]
[424571212,1780999853000,-792.6,0.00019452,2]
[424571214,1780999853000,-1024.86,0.00019452,2]
[424571216,1780999853000,-638.04,0.00019452,2]
[424571218,1780999853000,-1379.7,0.00019452,2]
[424571271,1780999853000,-906.22,0.00019726,2]
[424571222,1780999853000,-572.64,0.00019452,2]
[424571205,1780999853000,-1492.9,0.00019452,2]
[424571210,1780999853000,-500.0,0.00019452,2]
[424571208,1780999853000,-1470.94,0.00019452,2]
[424571202,1780999853000,-524.26,0.00019452,2]
[424571273,1780999853000,-562.87,0.00019726,2]
[424571220,1780999853000,-500.0,0.00019452,2]
[424571279,1780999853000,-282.52,0.00019726,2]
[424571331,1780999853000,-465.27,0.00019726,2]
[424571329,1780999853000,-572.64,0.00019726,2]
[424571338,1780999853000,-1470.44,0.00019726,2]
[424571340,1780999853000,-471.835879,0.00019796,2]
[424571334,1780999853000,-500.0,0.00019726,2]
[424571333,1780999853000,-500.0,0.00019726,2]
[424571336,1780999853000,-1710.4,0.00019726,2]
[424571343,1780999853000,-171.0,0.00019899,2]
[424571341,1780999853000,-500.0,0.00019859,2]
[424571345,1780999853000,-186.0,0.00019899,2]
[424571347,1780999853000,-4322.51836898,0.000199,2]
[424571353,1780999853000,-1413.0,0.00019922,2]
[424571351,1780999853000,-921.69168555,0.00019906,2]
[424571358,1780999853000,-356010.43123924,0.00019948,2]
[424571355,1780999853000,-444.0,0.00019922,2]
[424571349,1780999853000,-959.47349472,0.00019901,2]
[424571356,1780999853000,-186.0,0.00019922,2]
[424571378,1780999853000,-500.0,0.00018082,2]
[424571379,1780999853000,-1340.03539928,0.00019948,2]
[424571374,1780999853000,-385.66344,0.00019948,2]
[424571275,1780999853000,-500.0,0.00019726,2]
[424571327,1780999853000,-500.0,0.00019726,2]
[424571325,1780999853000,-1379.7,0.00019726,2]
[424571234,1780999853000,-820.0,0.00019461,2]
[424571313,1780999853000,-524.26,0.00019726,2]
[424571287,1780999853000,-1601.66,0.00019726,2]
[424571277,1780999853000,-500.0,0.00019726,2]
[424571285,1780999853000,-14407.5,0.00019726,2]
[424571293,1780999853000,-576.05,0.00019726,2]
[424571289,1780999853000,-1264.86,0.00019726,2]
[424571291,1780999853000,-1730.92,0.00019726,2]
[424571281,1780999853000,-500.0,0.00019726,2]
[424571295,1780999853000,-2284.9,0.00019726,2]
[424571297,1780999853000,-500.0,0.00019726,2]
[424571303,1780999853000,-548.46,0.00019726,2]
[424571283,1780999853000,-859.31,0.00019726,2]
[424571305,1780999853000,-644.88,0.00019726,2]
[424571315,1780999853000,-1492.9,0.00019726,2]
[424571321,1780999853000,-792.6,0.00019726,2]
[424571301,1780999853000,-1803.9,0.00019726,2]
[424571319,1780999853000,-482.92,0.00019726,2]